[Event "Titled Tuesday Blitz December 13 Early 2022"]
[White "Goltsev, Dmitry"]
[Black "Yedidia, Daniel"]
[WhiteFideId "24176710"]
[BlackFideId "30905907"]
[WhiteElo "2327"]
[BlackElo "2557"]
[Result "1-0"]
[Round "08"]
[TimeControl "180+1"]
[Date "2022.12.14"]
[WhiteClock "0:02:18"]
[BlackClock "0:00:30"]

1. e4 {[%clk 0:02:59]}  e5 {[%clk 0:03:00]} 2. Nf3 {[%clk 0:02:58]}  Nc6 {[%clk 0:03:00]} 3. Bb5 {[%clk 0:02:58]}  a6 {[%clk 0:03:01]} 4. Ba4 {[%clk 0:02:59]}  Nf6 {[%clk 0:03:01]} 5. O-O {[%clk 0:02:59]}  Be7 {[%clk 0:03:02]} 6. Re1 {[%clk 0:02:57]}  b5 {[%clk 0:03:02]} 7. Bb3 {[%clk 0:02:57]}  O-O {[%clk 0:03:03]} 8. c3 {[%clk 0:02:55]}  d6 {[%clk 0:03:03]} 9. h3 {[%clk 0:02:55]}  Nb8 {[%clk 0:03:04]} 10. d4 {[%clk 0:02:55]}  Nbd7 {[%clk 0:03:04]} 11. Nbd2 {[%clk 0:02:55]}  Bb7 {[%clk 0:03:05]} 12. Qe2 {[%clk 0:02:54]}  c5 {[%clk 0:02:55]} 13. d5 {[%clk 0:02:52]}  c4 {[%clk 0:02:53]} 14. Bc2 {[%clk 0:02:52]}  Qc7 {[%clk 0:02:52]} 15. Nf1 {[%clk 0:02:52]}  Rfb8 {[%clk 0:02:51]} 16. g4 {[%clk 0:02:52]}  a5 {[%clk 0:02:48]} 17. Ng3 {[%clk 0:02:52]}  g6 {[%clk 0:02:48]} 18. Nh4 {[%clk 0:02:50]}  Bc8 {[%clk 0:02:41]} 19. Nhf5 {[%clk 0:02:50]}  gxf5 {[%clk 0:02:35]} 20. Nxf5 {[%clk 0:02:51]}  Bf8 {[%clk 0:02:32]} 21. g5 {[%clk 0:02:50]}  Ne8 {[%clk 0:02:21]} 22. Qh5 {[%clk 0:02:50]}  Nc5 {[%clk 0:02:04]} 23. Kh1 {[%clk 0:02:49]}  Kh8 {[%clk 0:01:55]} 24. Rg1 {[%clk 0:02:43]}  Ng7 {[%clk 0:01:37]} 25. Qh4 {[%clk 0:02:41]}  Nd3 {[%clk 0:01:23]} 26. Nh6 {[%clk 0:02:32]}  Rb7 {[%clk 0:01:14]} 27. Be3 {[%clk 0:02:26]}  Qd7 {[%clk 0:01:13]} 28. Rg3 {[%clk 0:02:25]}  b4 {[%clk 0:01:03]} 29. Rag1 {[%clk 0:02:24]}  bxc3 {[%clk 0:01:02]} 30. bxc3 {[%clk 0:02:25]}  Rb2 {[%clk 0:01:03]} 31. Bxd3 {[%clk 0:02:21]}  cxd3 {[%clk 0:01:04]} 32. Rf3 {[%clk 0:02:20]}  Rxa2 {[%clk 0:00:29]} 33. Nxf7+ {[%clk 0:02:17]}  Kg8 {[%clk 0:00:30]} 34. Nh6+ {[%clk 0:02:17]}  Kh8 {[%clk 0:00:30]} 35. Rxf8# {[%clk 0:02:18]} 1-0


[Site "https://www.chess.com"]

[Event "Titled Tuesday Blitz December 13 Early 2022"]
[White "Gonzalez, Francisco Silva"]
[Black "Shapiro, Daniel"]
[WhiteFideId "1512285"]
[BlackFideId "2001780"]
[WhiteElo "2220"]
[BlackElo "2356"]
[Result "1/2-1/2"]
[Round "08"]
[TimeControl "180+1"]
[Date "2022.12.14"]
[WhiteClock "0:00:09"]
[BlackClock "0:00:06"]

1. d4 {[%clk 0:01:28]}  Nf6 {[%clk 0:02:59]} 2. c4 {[%clk 0:01:28]}  e6 {[%clk 0:02:59]} 3. Nc3 {[%clk 0:01:28]}  Bb4 {[%clk 0:02:58]} 4. a3 {[%clk 0:01:29]}  Bxc3+ {[%clk 0:02:57]} 5. bxc3 {[%clk 0:01:29]}  d6 {[%clk 0:02:52]} 6. e3 {[%clk 0:01:28]}  O-O {[%clk 0:02:43]} 7. Bd3 {[%clk 0:01:29]}  e5 {[%clk 0:02:41]} 8. Ne2 {[%clk 0:01:29]}  Nc6 {[%clk 0:02:37]} 9. e4 {[%clk 0:01:21]}  Nd7 {[%clk 0:02:35]} 10. O-O {[%clk 0:01:18]}  b6 {[%clk 0:02:34]} 11. f4 {[%clk 0:01:17]}  Ba6 {[%clk 0:02:28]} 12. Rf3 {[%clk 0:01:10]}  Na5 {[%clk 0:02:21]} 13. Rh3 {[%clk 0:01:09]}  Bxc4 {[%clk 0:02:14]} 14. fxe5 {[%clk 0:01:09]}  Bxd3 {[%clk 0:02:06]} 15. Qxd3 {[%clk 0:01:07]}  dxe5 {[%clk 0:02:05]} 16. Rb1 {[%clk 0:00:59]}  Qe7 {[%clk 0:01:55]} 17. Ng3 {[%clk 0:00:56]}  g6 {[%clk 0:01:52]} 18. Qe3 {[%clk 0:00:43]}  f6 {[%clk 0:01:44]} 19. Qh6 {[%clk 0:00:42]}  Rfe8 {[%clk 0:01:27]} 20. Rb5 {[%clk 0:00:31]}  c6 {[%clk 0:01:17]} 21. Rb4 {[%clk 0:00:27]}  c5 {[%clk 0:01:07]} 22. dxc5 {[%clk 0:00:25]}  Qxc5+ {[%clk 0:01:02]} 23. Be3 {[%clk 0:00:25]}  Qe7 {[%clk 0:01:03]} 24. Rb5 {[%clk 0:00:22]}  Rac8 {[%clk 0:01:00]} 25. Rd5 {[%clk 0:00:21]}  Nf8 {[%clk 0:00:58]} 26. Rh4 {[%clk 0:00:16]}  Rxc3 {[%clk 0:00:57]} 27. Rg4 {[%clk 0:00:16]}  Qg7 {[%clk 0:00:55]} 28. Nf5 {[%clk 0:00:13]}  Qxh6 {[%clk 0:00:49]} 29. Nxh6+ {[%clk 0:00:13]}  Kh8 {[%clk 0:00:47]} 30. Bd2 {[%clk 0:00:14]}  Rxa3 {[%clk 0:00:38]} 31. Bb4 {[%clk 0:00:13]}  Ra2 {[%clk 0:00:36]} 32. Bxf8 {[%clk 0:00:12]}  Rxf8 {[%clk 0:00:31]} 33. Rd7 {[%clk 0:00:13]}  Rc8 {[%clk 0:00:22]} 34. h4 {[%clk 0:00:12]}  Nc4 {[%clk 0:00:18]} 35. Rg3 {[%clk 0:00:12]}  b5 {[%clk 0:00:15]} 36. Rf3 {[%clk 0:00:12]}  Ra6 {[%clk 0:00:09]} 37. Rfd3 {[%clk 0:00:09]}  b4 {[%clk 0:00:07]} 38. Nf7+ {[%clk 0:00:09]}  Kg8 {[%clk 0:00:06]} 39. Nh6+ {[%clk 0:00:09]}  Kh8 {[%clk 0:00:06]} 40. Nf7+ {[%clk 0:00:09]}  Kg8 {[%clk 0:00:06]} 41. Nh6+ {[%clk 0:00:09]}  Kh8 {[%clk 0:00:06]} 1/2-1/2


[Site "https://www.chess.com"]

[Event "Titled Tuesday Blitz December 13 Early 2022"]
[White "Goroshkov, Maksym"]
[Black "Abdrlauf, Elham"]
[WhiteFideId "14142716"]
[BlackFideId "1533533"]
[WhiteElo "2258"]
[BlackElo "2454"]
[Result "1-0"]
[Round "08"]
[TimeControl "180+1"]
[Date "2022.12.13"]
[WhiteClock "0:01:18"]
[BlackClock "0:00:01"]

1. e4 {[%clk 0:02:59]}  c6 {[%clk 0:02:59]} 2. d4 {[%clk 0:02:58]}  d5 {[%clk 0:03:00]} 3. exd5 {[%clk 0:02:59]}  cxd5 {[%clk 0:03:01]} 4. c4 {[%clk 0:02:59]}  Nf6 {[%clk 0:03:02]} 5. Nc3 {[%clk 0:02:59]}  g6 {[%clk 0:03:03]} 6. Nf3 {[%clk 0:02:56]}  Bg7 {[%clk 0:03:03]} 7. cxd5 {[%clk 0:02:57]}  Nxd5 {[%clk 0:03:04]} 8. Bc4 {[%clk 0:02:57]}  Nxc3 {[%clk 0:03:05]} 9. bxc3 {[%clk 0:02:58]}  O-O {[%clk 0:03:05]} 10. O-O {[%clk 0:02:58]}  Nc6 {[%clk 0:03:06]} 11. Bg5 {[%clk 0:02:57]}  Qc7 {[%clk 0:02:58]} 12. Re1 {[%clk 0:02:56]}  Nxd4 {[%clk 0:02:46]} 13. Bxf7+ {[%clk 0:02:54]}  Rxf7 {[%clk 0:02:47]} 14. cxd4 {[%clk 0:02:46]}  Bg4 {[%clk 0:02:45]} 15. Qb3 {[%clk 0:02:44]}  Bxf3 {[%clk 0:01:15]} 16. Rxe7 {[%clk 0:02:42]}  Qxe7 {[%clk 0:01:16]} 17. Bxe7 {[%clk 0:02:42]}  Bxd4 {[%clk 0:01:16]} 18. Rf1 {[%clk 0:02:20]}  Be2 {[%clk 0:01:16]} 19. Rc1 {[%clk 0:02:10]}  Bxf2+ {[%clk 0:01:01]} 20. Kh1 {[%clk 0:02:09]}  Re8 {[%clk 0:00:54]} 21. Bg5 {[%clk 0:02:01]}  Bb6 {[%clk 0:00:41]} 22. h3 {[%clk 0:01:49]}  Ba6 {[%clk 0:00:11]} 23. Bf6 {[%clk 0:01:42]}  Rf8 {[%clk 0:00:05]} 24. Re1 {[%clk 0:01:35]}  Bd8 {[%clk 0:00:02]} 25. Bb2 {[%clk 0:01:29]}  Bh4 {[%clk 0:00:02]} 26. Rd1 {[%clk 0:01:22]}  h5 {[%clk 0:00:02]} 27. Rd7 {[%clk 0:01:19]}  Bg5 {[%clk 0:00:02]} 28. Ba3 {[%clk 0:01:18]}  Bh6 {[%clk 0:00:01]} 29. Bxf8 {[%clk 0:01:18]} 1-0


[Site "https://www.chess.com"]

[Event "Titled Tuesday Blitz December 13 Early 2022"]
[White "Hamley, Ryan"]
[Black "Fernandez Siles, Luis"]
[WhiteFideId "30959497"]
[BlackFideId "2209420"]
[WhiteElo "2617"]
[BlackElo "2186"]
[Result "0-1"]
[Round "08"]
[TimeControl "180+1"]
[Date "2022.12.14"]
[WhiteClock "0:00:04"]
[BlackClock "0:00:16"]

1. d4 {[%clk 0:03:00]}  Nf6 {[%clk 0:02:59]} 2. Nf3 {[%clk 0:03:00]}  g6 {[%clk 0:02:59]} 3. Nbd2 {[%clk 0:03:00]}  d5 {[%clk 0:02:58]} 4. b4 {[%clk 0:03:00]}  Bg7 {[%clk 0:02:55]} 5. e3 {[%clk 0:03:00]}  O-O {[%clk 0:02:55]} 6. c4 {[%clk 0:03:00]}  dxc4 {[%clk 0:02:35]} 7. Nxc4 {[%clk 0:02:55]}  c6 {[%clk 0:02:32]} 8. Bd3 {[%clk 0:02:52]}  Nbd7 {[%clk 0:02:29]} 9. O-O {[%clk 0:02:51]}  Nb6 {[%clk 0:02:29]} 10. Nce5 {[%clk 0:02:51]}  Nfd7 {[%clk 0:02:23]} 11. Bb2 {[%clk 0:02:46]}  Nxe5 {[%clk 0:02:21]} 12. Nxe5 {[%clk 0:02:45]}  Nd7 {[%clk 0:02:21]} 13. Nf3 {[%clk 0:02:43]}  c5 {[%clk 0:02:04]} 14. Qb3 {[%clk 0:02:10]}  cxd4 {[%clk 0:02:00]} 15. Nxd4 {[%clk 0:02:06]}  e5 {[%clk 0:01:50]} 16. Nb5 {[%clk 0:02:02]}  Nb6 {[%clk 0:01:46]} 17. Rfd1 {[%clk 0:01:53]}  Be6 {[%clk 0:01:44]} 18. Qc2 {[%clk 0:01:52]}  Qh4 {[%clk 0:01:35]} 19. Qd2 {[%clk 0:01:34]}  Rad8 {[%clk 0:01:20]} 20. Qc2 {[%clk 0:00:34]}  Nd5 {[%clk 0:01:10]} 21. a3 {[%clk 0:00:33]}  a6 {[%clk 0:00:58]} 22. Nc3 {[%clk 0:00:09]}  Rc8 {[%clk 0:00:58]} 23. Qd2 {[%clk 0:00:10]}  Nxc3 {[%clk 0:00:52]} 24. Bxc3 {[%clk 0:00:10]}  Rxc3 {[%clk 0:00:52]} 25. Qxc3 {[%clk 0:00:10]}  e4 {[%clk 0:00:52]} 26. Qc7 {[%clk 0:00:01]}  Bxa1 {[%clk 0:00:45]} 27. Bf1 {[%clk 0:00:01]}  Bf6 {[%clk 0:00:41]} 28. g3 {[%clk 0:00:01]}  Qh5 {[%clk 0:00:40]} 29. Rc1 {[%clk 0:00:01]}  Rc8 {[%clk 0:00:34]} 30. Qxc8+ {[%clk 0:00:01]}  Bxc8 {[%clk 0:00:33]} 31. Rxc8+ {[%clk 0:00:02]}  Kg7 {[%clk 0:00:33]} 32. Rc2 {[%clk 0:00:03]}  Qd1 {[%clk 0:00:32]} 33. Rc7 {[%clk 0:00:02]}  h5 {[%clk 0:00:22]} 34. h4 {[%clk 0:00:02]}  g5 {[%clk 0:00:22]} 35. hxg5 {[%clk 0:00:03]}  Bxg5 {[%clk 0:00:21]} 36. Rxb7 {[%clk 0:00:03]}  h4 {[%clk 0:00:20]} 37. gxh4 {[%clk 0:00:04]}  Bxh4 {[%clk 0:00:19]} 38. Rb6 {[%clk 0:00:04]}  Qe1 {[%clk 0:00:16]} 0-1


[Site "https://www.chess.com"]

[Event "Titled Tuesday Blitz December 13 Early 2022"]
[White "Hartikainen, Jarmo"]
[Black "Bochnicka, Vladimir"]
[WhiteFideId "503134"]
[BlackFideId "14943450"]
[WhiteElo "2224"]
[BlackElo "2239"]
[Result "0-1"]
[Round "08"]
[TimeControl "180+1"]
[Date "2022.12.14"]
[WhiteClock "0:00:08"]
[BlackClock "0:00:10"]

1. e4 {[%clk 0:03:00]}  c5 {[%clk 0:02:59]} 2. c3 {[%clk 0:03:00]}  Nf6 {[%clk 0:02:58]} 3. e5 {[%clk 0:03:00]}  Nd5 {[%clk 0:02:59]} 4. d4 {[%clk 0:03:00]}  cxd4 {[%clk 0:02:58]} 5. Nf3 {[%clk 0:03:00]}  Nc6 {[%clk 0:02:57]} 6. cxd4 {[%clk 0:03:00]}  e6 {[%clk 0:02:57]} 7. Nc3 {[%clk 0:02:58]}  d6 {[%clk 0:02:55]} 8. Bd3 {[%clk 0:02:40]}  Nxc3 {[%clk 0:02:51]} 9. bxc3 {[%clk 0:02:39]}  dxe5 {[%clk 0:02:52]} 10. dxe5 {[%clk 0:02:33]}  Be7 {[%clk 0:02:51]} 11. O-O {[%clk 0:02:31]}  O-O {[%clk 0:02:38]} 12. Qe2 {[%clk 0:02:23]}  Qc7 {[%clk 0:02:33]} 13. Qe4 {[%clk 0:02:15]}  g6 {[%clk 0:02:31]} 14. Bh6 {[%clk 0:02:14]}  Rd8 {[%clk 0:02:28]} 15. Rfe1 {[%clk 0:02:01]}  b6 {[%clk 0:02:27]} 16. Bg5 {[%clk 0:01:58]}  Bb7 {[%clk 0:02:24]} 17. Rad1 {[%clk 0:01:35]}  Nb4 {[%clk 0:01:54]} 18. Qh4 {[%clk 0:01:22]}  Bxf3 {[%clk 0:01:40]} 19. Bxe7 {[%clk 0:01:20]}  Rxd3 {[%clk 0:01:38]} 20. Rxd3 {[%clk 0:01:07]}  Nxd3 {[%clk 0:01:38]} 21. Bf6 {[%clk 0:01:04]}  Bh5 {[%clk 0:01:25]} 22. Qg5 {[%clk 0:00:30]}  Qc5 {[%clk 0:01:22]} 23. Re3 {[%clk 0:00:20]}  Qxc3 {[%clk 0:00:44]} 24. g4 {[%clk 0:00:16]}  Qd2 {[%clk 0:00:37]} 25. Rxd3 {[%clk 0:00:13]}  Qxd3 {[%clk 0:00:13]} 26. gxh5 {[%clk 0:00:13]}  Qd1+ {[%clk 0:00:12]} 27. Kg2 {[%clk 0:00:13]}  Qxh5 {[%clk 0:00:13]} 28. Qd2 {[%clk 0:00:10]}  Qg4+ {[%clk 0:00:10]} 29. Kf1 {[%clk 0:00:09]}  Qh3+ {[%clk 0:00:10]} 30. Ke1 {[%clk 0:00:09]}  Rc8 {[%clk 0:00:10]} 31. Kd1 {[%clk 0:00:08]}  Qf1+ {[%clk 0:00:09]} 32. Qe1 {[%clk 0:00:08]}  Rc1+ {[%clk 0:00:10]} 33. Kxc1 {[%clk 0:00:08]}  Qxe1+ {[%clk 0:00:10]} 0-1


[Site "https://www.chess.com"]

[Event "Titled Tuesday Blitz December 13 Early 2022"]
[White "Iskusnyh, Sergei"]
[Black "Rodriguez Fontecha, Marcos"]
[WhiteFideId "4120027"]
[BlackFideId "2256576"]
[WhiteElo "2492"]
[BlackElo "2263"]
[Result "0-1"]
[Round "08"]
[TimeControl "180+1"]
[Date "2022.12.14"]
[WhiteClock "0:00:07"]
[BlackClock "0:00:15"]

1. d4 {[%clk 0:03:00]}  d5 {[%clk 0:03:00]} 2. c4 {[%clk 0:03:00]}  Nc6 {[%clk 0:03:00]} 3. Nc3 {[%clk 0:02:57]}  Nf6 {[%clk 0:02:59]} 4. cxd5 {[%clk 0:02:45]}  Nxd5 {[%clk 0:03:00]} 5. Nf3 {[%clk 0:02:45]}  g6 {[%clk 0:02:48]} 6. e4 {[%clk 0:02:44]}  Nxc3 {[%clk 0:02:47]} 7. bxc3 {[%clk 0:02:43]}  Bg7 {[%clk 0:02:48]} 8. Be2 {[%clk 0:02:42]}  O-O {[%clk 0:02:46]} 9. O-O {[%clk 0:02:32]}  e5 {[%clk 0:02:28]} 10. Ba3 {[%clk 0:02:29]}  Re8 {[%clk 0:02:28]} 11. d5 {[%clk 0:02:28]}  Ne7 {[%clk 0:02:23]} 12. c4 {[%clk 0:02:27]}  f5 {[%clk 0:02:18]} 13. Rb1 {[%clk 0:01:54]}  b6 {[%clk 0:02:14]} 14. Bd3 {[%clk 0:01:50]}  fxe4 {[%clk 0:02:06]} 15. Bxe4 {[%clk 0:01:50]}  Bf5 {[%clk 0:02:06]} 16. Re1 {[%clk 0:01:48]}  Bxe4 {[%clk 0:02:01]} 17. Bxe7 {[%clk 0:01:37]}  Bxf3 {[%clk 0:01:56]} 18. Bxd8 {[%clk 0:01:35]}  Bxd1 {[%clk 0:01:56]} 19. Bxc7 {[%clk 0:01:35]}  Ba4 {[%clk 0:01:46]} 20. c5 {[%clk 0:01:23]}  bxc5 {[%clk 0:01:38]} 21. Rbc1 {[%clk 0:01:22]}  Kf7 {[%clk 0:01:03]} 22. Rxc5 {[%clk 0:01:21]}  Rac8 {[%clk 0:01:03]} 23. d6 {[%clk 0:01:18]}  Ke6 {[%clk 0:00:58]} 24. Ra5 {[%clk 0:01:15]}  Bc6 {[%clk 0:00:54]} 25. Rxa7 {[%clk 0:01:06]}  Ra8 {[%clk 0:00:54]} 26. Rxa8 {[%clk 0:01:06]}  Rxa8 {[%clk 0:00:54]} 27. Rc1 {[%clk 0:00:51]}  Rxa2 {[%clk 0:00:52]} 28. h3 {[%clk 0:00:51]}  Kd7 {[%clk 0:00:50]} 29. Rc4 {[%clk 0:00:32]}  Bf8 {[%clk 0:00:40]} 30. Rh4 {[%clk 0:00:14]}  h5 {[%clk 0:00:40]} 31. Rc4 {[%clk 0:00:11]}  Bxd6 {[%clk 0:00:39]} 32. Bxd6 {[%clk 0:00:11]}  Kxd6 {[%clk 0:00:39]} 33. Rc3 {[%clk 0:00:11]}  Be4 {[%clk 0:00:30]} 34. f3 {[%clk 0:00:10]}  Bf5 {[%clk 0:00:29]} 35. Rb3 {[%clk 0:00:10]}  Kd5 {[%clk 0:00:27]} 36. Rb4 {[%clk 0:00:07]}  g5 {[%clk 0:00:21]} 37. Kh2 {[%clk 0:00:06]}  h4 {[%clk 0:00:20]} 38. Rb5+ {[%clk 0:00:05]}  Kd4 {[%clk 0:00:18]} 39. Rb4+ {[%clk 0:00:06]}  Ke3 {[%clk 0:00:17]} 40. Rb5 {[%clk 0:00:06]}  Kf4 {[%clk 0:00:16]} 41. Rb4+ {[%clk 0:00:06]}  e4 {[%clk 0:00:17]} 42. fxe4 {[%clk 0:00:06]}  Bxe4 {[%clk 0:00:18]} 43. Rb8 {[%clk 0:00:06]}  Rxg2+ {[%clk 0:00:16]} 44. Kh1 {[%clk 0:00:07]}  Rb2+ {[%clk 0:00:15]} 0-1


[Site "https://www.chess.com"]

[Event "Titled Tuesday Blitz December 13 Early 2022"]
[White "Jakubowska, Anna"]
[Black "Derjabin, Ilja"]
[WhiteFideId "1121952"]
[BlackFideId "14104768"]
[WhiteElo "2001"]
[BlackElo "2309"]
[Result "0-1"]
[Round "08"]
[TimeControl "180+1"]
[Date "2022.12.14"]
[WhiteClock "0:00:01"]
[BlackClock "0:00:03"]

1. e4 {[%clk 0:03:00]}  c5 {[%clk 0:02:59]} 2. Nf3 {[%clk 0:02:59]}  d6 {[%clk 0:03:00]} 3. Bb5+ {[%clk 0:02:57]}  Bd7 {[%clk 0:02:59]} 4. Bxd7+ {[%clk 0:02:57]}  Qxd7 {[%clk 0:03:00]} 5. O-O {[%clk 0:02:57]}  Nc6 {[%clk 0:02:58]} 6. c3 {[%clk 0:02:56]}  Nf6 {[%clk 0:02:57]} 7. Re1 {[%clk 0:02:56]}  e6 {[%clk 0:02:58]} 8. d4 {[%clk 0:02:54]}  cxd4 {[%clk 0:02:58]} 9. cxd4 {[%clk 0:02:54]}  d5 {[%clk 0:02:59]} 10. e5 {[%clk 0:02:54]}  Ne4 {[%clk 0:02:57]} 11. Nbd2 {[%clk 0:02:54]}  Bb4 {[%clk 0:02:55]} 12. a3 {[%clk 0:02:53]}  Bxd2 {[%clk 0:02:52]} 13. Bxd2 {[%clk 0:02:54]}  O-O {[%clk 0:02:52]} 14. Be3 {[%clk 0:02:48]}  Rac8 {[%clk 0:02:50]} 15. Re2 {[%clk 0:02:37]}  Na5 {[%clk 0:02:45]} 16. Ne1 {[%clk 0:02:29]}  f6 {[%clk 0:02:38]} 17. f3 {[%clk 0:02:24]}  Ng5 {[%clk 0:02:39]} 18. exf6 {[%clk 0:02:21]}  gxf6 {[%clk 0:02:36]} 19. Bxg5 {[%clk 0:02:19]}  fxg5 {[%clk 0:02:36]} 20. Qd2 {[%clk 0:02:19]}  Nc4 {[%clk 0:02:31]} 21. Qxg5+ {[%clk 0:02:19]}  Kh8 {[%clk 0:02:31]} 22. Nd3 {[%clk 0:02:16]}  Rg8 {[%clk 0:02:21]} 23. Qh5 {[%clk 0:02:06]}  Qg7 {[%clk 0:02:17]} 24. Ne5 {[%clk 0:01:45]}  Nxe5 {[%clk 0:02:16]} 25. Qxe5 {[%clk 0:01:46]}  Qxe5 {[%clk 0:02:15]} 26. dxe5 {[%clk 0:01:44]}  Rc4 {[%clk 0:02:10]} 27. Rf1 {[%clk 0:01:37]}  Rgc8 {[%clk 0:01:54]} 28. f4 {[%clk 0:01:35]}  d4 {[%clk 0:01:54]} 29. f5 {[%clk 0:01:31]}  exf5 {[%clk 0:01:53]} 30. Rxf5 {[%clk 0:01:30]}  d3 {[%clk 0:01:50]} 31. Rd2 {[%clk 0:01:26]}  Rc2 {[%clk 0:01:47]} 32. Rff2 {[%clk 0:01:25]}  Rc1+ {[%clk 0:01:01]} 33. Rf1 {[%clk 0:01:24]}  R8c2 {[%clk 0:00:58]} 34. Rxd3 {[%clk 0:01:06]}  Rxf1+ {[%clk 0:00:57]} 35. Kxf1 {[%clk 0:01:06]}  Rxb2 {[%clk 0:00:58]} 36. e6 {[%clk 0:01:04]}  Kg7 {[%clk 0:00:58]} 37. Rf3 {[%clk 0:00:49]}  Rb6 {[%clk 0:00:57]} 38. Rf7+ {[%clk 0:00:41]}  Kg6 {[%clk 0:00:57]} 39. Kf2 {[%clk 0:00:38]}  a5 {[%clk 0:00:42]} 40. Kf3 {[%clk 0:00:32]}  a4 {[%clk 0:00:34]} 41. h4 {[%clk 0:00:26]}  h5 {[%clk 0:00:33]} 42. Kf4 {[%clk 0:00:10]}  Rxe6 {[%clk 0:00:33]} 43. Rxb7 {[%clk 0:00:10]}  Rc6 {[%clk 0:00:33]} 44. Rb4 {[%clk 0:00:09]}  Ra6 {[%clk 0:00:32]} 45. g4 {[%clk 0:00:08]}  hxg4 {[%clk 0:00:30]} 46. Kxg4 {[%clk 0:00:09]}  Kh6 {[%clk 0:00:30]} 47. Rf4 {[%clk 0:00:07]}  Rg6+ {[%clk 0:00:28]} 48. Kf5 {[%clk 0:00:06]}  Ra6 {[%clk 0:00:25]} 49. Ke5 {[%clk 0:00:06]}  Kh5 {[%clk 0:00:23]} 50. Kd5 {[%clk 0:00:05]}  Ra5+ {[%clk 0:00:18]} 51. Kc6 {[%clk 0:00:04]}  Ra8 {[%clk 0:00:17]} 52. Rb4 {[%clk 0:00:03]}  Ra5 {[%clk 0:00:12]} 53. Kb6 {[%clk 0:00:02]}  Ra8 {[%clk 0:00:12]} 54. Kb5 {[%clk 0:00:03]}  Kg6 {[%clk 0:00:08]} 55. Rxa4 {[%clk 0:00:03]}  Rb8+ {[%clk 0:00:08]} 56. Kc5 {[%clk 0:00:03]}  Rc8+ {[%clk 0:00:08]} 57. Kb6 {[%clk 0:00:03]}  Kf6 {[%clk 0:00:06]} 58. Kb7 {[%clk 0:00:02]}  Rc3 {[%clk 0:00:05]} 59. Ra5 {[%clk 0:00:02]}  Rb3+ {[%clk 0:00:03]} 60. Kc6 {[%clk 0:00:02]}  Rc3+ {[%clk 0:00:04]} 61. Kb5 {[%clk 0:00:02]}  Rb3+ {[%clk 0:00:04]} 62. Kc4 {[%clk 0:00:02]}  Rh3 {[%clk 0:00:04]} 63. h5 {[%clk 0:00:03]}  Rh4+ {[%clk 0:00:05]} 64. Kb3 {[%clk 0:00:02]}  Ke7 {[%clk 0:00:05]} 65. a4 {[%clk 0:00:02]}  Kd6 {[%clk 0:00:05]} 66. h6 {[%clk 0:00:01]}  Kc6 {[%clk 0:00:03]} 0-1


[Site "https://www.chess.com"]

[Event "Titled Tuesday Blitz December 13 Early 2022"]
[White "Jimenez Almeida, Luis David"]
[Black "Haddouche, Mohamed"]
[WhiteFideId "22242244"]
[BlackFideId "7900660"]
[WhiteElo "2158"]
[BlackElo "2443"]
[Result "0-1"]
[Round "08"]
[TimeControl "180+1"]
[Date "2022.12.14"]
[WhiteClock "0:00:26"]
[BlackClock "0:00:03"]

1. e4 {[%clk 0:03:00]}  e5 {[%clk 0:02:59]} 2. Nf3 {[%clk 0:03:00]}  Nc6 {[%clk 0:03:00]} 3. Bb5 {[%clk 0:03:00]}  g6 {[%clk 0:02:56]} 4. d4 {[%clk 0:02:56]}  exd4 {[%clk 0:02:54]} 5. Nxd4 {[%clk 0:02:56]}  Bg7 {[%clk 0:02:50]} 6. Be3 {[%clk 0:02:56]}  Nf6 {[%clk 0:02:48]} 7. Nc3 {[%clk 0:02:55]}  O-O {[%clk 0:02:48]} 8. Qd2 {[%clk 0:02:44]}  Re8 {[%clk 0:02:19]} 9. f3 {[%clk 0:02:42]}  Nxd4 {[%clk 0:02:18]} 10. Bxd4 {[%clk 0:02:42]}  c6 {[%clk 0:02:18]} 11. Be2 {[%clk 0:02:38]}  d5 {[%clk 0:02:18]} 12. exd5 {[%clk 0:02:33]}  Bf5 {[%clk 0:01:36]} 13. O-O-O {[%clk 0:01:56]}  cxd5 {[%clk 0:01:28]} 14. g4 {[%clk 0:01:53]}  Be6 {[%clk 0:01:25]} 15. h4 {[%clk 0:01:49]}  h5 {[%clk 0:00:54]} 16. g5 {[%clk 0:01:43]}  Nd7 {[%clk 0:00:51]} 17. Bxg7 {[%clk 0:01:42]}  Kxg7 {[%clk 0:00:50]} 18. Qd4+ {[%clk 0:01:42]}  Kg8 {[%clk 0:00:49]} 19. Rhe1 {[%clk 0:01:34]}  Nb6 {[%clk 0:00:38]} 20. Bd3 {[%clk 0:01:23]}  Qd6 {[%clk 0:00:27]} 21. Ne4 {[%clk 0:01:17]}  Qf4+ {[%clk 0:00:27]} 22. Kb1 {[%clk 0:00:54]}  dxe4 {[%clk 0:00:27]} 23. Bxe4 {[%clk 0:00:52]}  Qxh4 {[%clk 0:00:21]} 24. Qf6 {[%clk 0:00:51]}  Nd7 {[%clk 0:00:14]} 25. Qd4 {[%clk 0:00:37]}  Qxg5 {[%clk 0:00:14]} 26. Rg1 {[%clk 0:00:36]}  Qf6 {[%clk 0:00:12]} 27. Qe3 {[%clk 0:00:34]}  Nf8 {[%clk 0:00:12]} 28. Qh6 {[%clk 0:00:34]}  Rad8 {[%clk 0:00:11]} 29. Rdf1 {[%clk 0:00:32]}  Qg7 {[%clk 0:00:10]} 30. Qf4 {[%clk 0:00:31]}  Bd5 {[%clk 0:00:10]} 31. Bd3 {[%clk 0:00:30]}  Ne6 {[%clk 0:00:08]} 32. Qh4 {[%clk 0:00:30]}  Nf8 {[%clk 0:00:06]} 33. f4 {[%clk 0:00:31]}  Be4 {[%clk 0:00:06]} 34. Be2 {[%clk 0:00:29]}  Rd2 {[%clk 0:00:05]} 35. Bxh5 {[%clk 0:00:26]}  Rxc2 {[%clk 0:00:04]} 36. Ka1 {[%clk 0:00:26]}  Qxb2# {[%clk 0:00:03]} 0-1


[Site "https://www.chess.com"]